Cogmind - Beta 15 @@@ ROGUE MODE // 2025.05.11 @ 12:07:06 Player: Epsilon 11 Result: Self-destructed Performance ------------- Evolutions (6) 3000 Regions Visited (17) 3400 Robots Destroyed (140) 700 Value Destroyed (6384) 6384 Prototype IDs (61) 1220 Alien Tech Used (0) 0 Bonus (4417) 4417 TOTAL SCORE: 19121 Bonus ------- High Alert Combat Kills 107 Follower Combat Kills 2444 Network Hubs Disabled 400 Met Imprinter 300 Was Imprinted 300 Built Enhanced Grunts 300 A7 Reached Mainframe 300 Met R17 at Cetus 500 Friendly Fire -234 Cogmind --------- Core Integrity 177/1150 Matter 217/300 Energy 102/390 System Corruption 11% Temperature Warm (139) Movement Core (500) Ox9 Location -4/Factory Parts ------- > --- POWER (2) -------- Micro Fission Core Heavy Antimatter Reactor > --- PROPULSION (6) --- (None) > --- UTILITY (8) ------ Improved Heat Sink Experimental Heat Sink IFF Parser Improved Target Analyzer Improved Utility Shielding Improved Utility Shielding > --- WEAPON (3) ------- (None) > --- INVENTORY (5) ---- Improved Fusion Compressor Enhanced Hardcell Cannon Peak State ------------ > --- POWER ------------ Zionite Light DM Reactor > --- PROPULSION ------- Light Armored Exoskeleton Multireflex Exoskeleton Wheel > --- UTILITY ---------- Experimental Heat Sink Experimental Heat Sink Large Storage Unit Enhanced Optical Array 0b10 Decoder Chip [Skirmisher] Centrium Medium Armor Plating Centrium Medium Armor Plating > --- WEAPON ----------- Force Rifle Zionite Laser-S Advanced Variable Charge Gun > --- INVENTORY -------- Centrium Heavy Treads Centrium Heavy Treads Zionite Biocell IFF Parser Hardened Heavy Armor Plating Improved Dynamic Insulation System Mini Drone Bay Heavy Shock Bomb Launcher Advanced Datajack Improved Plasma Cutter Phasing Sabre GAL Module [Rating: 102] Favorites ----------- Power Heavy Deuterium Engine Engine Heavy Deuterium Engine Power Core Fission Core Reactor Zionite Heavy DM Reactor Propulsion Carbon-fiber Leg Treads Centrium Heavy Treads Leg Carbon-fiber Leg Wheel Wheel Hover Unit Antigrav System Utility Medium Storage Unit Device Structural Scanner Storage Medium Storage Unit Processor 0b10 Decoder Chip [Skirmisher] Hackware Hacking Suite Protection Improved Medium Armor Plating Weapon Beamcaster Energy Gun Beamcaster Energy Cannon Phase Cannon Ballistic Gun Flak Gun Ballistic Cannon Light Cannon Launcher Grenade Launcher Special Weapon Enhanced Flamer Impact Weapon Flail Slashing Weapon Chainsword Special Melee Weapon Improved Datajack Build | -11 -10 -9 -8 -7 -7 -7 -7 -6 -6 -6 -6 -6 -6 -5 -4 -4 -4 ------- Run | Yrd Mat Mat Mat Fac Low Low Zio Pro Fac Ext Cet Arc Hub Fac Fac Was Fac Slots Evolved 12 | . . 2 2 2 . . . . 2 . . . . 2 2 . . Power 1 | . . . . . . . . . 1 . . . . . . . . Propulsion 4 | . . 1 . . . . . . 1 . . . . 1 1 . . Utility 6 | . . 1 2 1 . . . . . . . . . 1 1 . . Weapon 1 | . . . . 1 . . . . . . . . . . . . . Parts Attached 179 | 6 6 19 13 18 2 1 5 3 24 17 10 1 2 20 12 1 19 Power 24 | 1 1 3 3 1 . . 1 . 3 1 1 1 . 1 2 1 4 Engine 11 | 1 1 3 3 1 . . . . . . . . . 1 . 1 . Core 7 | . . . . . . . 1 . 1 1 . 1 . . 1 . 2 Reactor 6 | . . . . . . . . . 2 . 1 . . . 1 . 2 Propulsion 36 | 2 2 5 2 2 1 . 1 1 5 5 1 . . 2 5 . 2 Treads 2 | . . . . . . . . . . . 1 . . 1 . . . Leg 28 | 2 2 5 2 2 1 . 1 1 5 3 . . . . 4 . . Wheel 4 | . . . . . . . . . . 2 . . . 1 1 . . Hover 2 | . . . . . . . . . . . . . . . . . 2 Flight . | . . . . . . . . . . . . . . . . . . Utility 64 | 1 . 6 4 8 . . . 1 12 5 5 . 1 10 2 . 9 Device 31 | . . 3 3 4 . . . . 6 3 2 . 1 3 1 . 5 Storage 5 | 1 . 1 . . . . . . 1 . . . . 2 . . . Processor 5 | . . 1 . 1 . . . . 1 . . . . 1 . . 1 Hackware 4 | . . . . 1 . . . . 1 . . . . . 1 . 1 Protection 19 | . . 1 1 2 . . . 1 3 2 3 . . 4 . . 2 Artifact . | . . . . . . . . . . . . . . . . . . Weapon 55 | 2 3 5 4 7 1 1 3 1 4 6 3 . 1 7 3 . 4 Energy Gun 30 | 1 . 2 3 5 1 . 2 1 3 5 1 . 1 3 1 . 1 Energy Cannon 5 | . . 1 1 . . . . . 1 . . . . . . . 2 Ballistic Gun 4 | 1 . . . . . 1 . . . 1 1 . . . . . . Ballistic Cannon 6 | . 2 . . . . . . . . . . . . 2 1 . 1 Launcher 2 | . 1 . . . . . . . . . . . . 1 . . . Special Weapon 1 | . . . . . . . . . . . . . . . 1 . . Impact Weapon 1 | . . 1 . . . . . . . . . . . . . . . Slashing Weapon 4 | . . 1 . 1 . . 1 . . . 1 . . . . . . Piercing Weapon . | . . . . . . . . . . . . . . . . . . Special Melee Weapon 2 | . . . . 1 . . . . . . . . . 1 . . . Unidentified Prototypes 13 | . . 2 1 2 . . 2 . . . 4 . . . . . 2 Parts Lost 67 | . . 2 1 6 . 2 . 2 4 3 1 . 2 23 5 3 13 Power 10 | . . . . 1 . . . . 1 . . . 1 2 2 . 3 Propulsion 10 | . . 1 . . . . . . . . . . . 3 1 1 4 Utility 22 | . . . 1 2 . . . 1 2 2 1 . 1 9 1 1 1 Weapon 25 | . . 1 . 3 . 2 . 1 1 1 . . . 9 1 1 5 Highest Loss Streak 8 | . . 2 1 3 . 2 . 2 2 1 1 . 2 8 4 3 5 To Critical Strikes 2 | . . . . . . . . . . . 1 . . 1 . . . Average Backups 7 | . 5 9 8 8 9 8 8 7 7 7 7 7 7 8 4 4 3 Power . | . 1 1 1 . 1 1 1 1 . . . . . . . . 1 Propulsion 1 | . 1 . 1 1 3 3 2 1 . 1 1 2 2 1 . . . Utility 3 | . . 2 3 3 2 2 2 3 4 4 3 2 2 3 2 2 . Weapon 1 | . 2 4 2 1 2 1 1 1 . 1 2 2 1 1 2 1 1 Tool/Special . | . . . . . . . . . . . . . . . . . . Unused Backups 21 | . 1 3 6 . . 2 1 . . 1 1 . . 3 . 1 2 Power 5 | . 1 . 1 . . 1 1 . . . . . . . . . 1 Propulsion 1 | . . . . . . . . . . . . . . . . . 1 Utility 8 | . . 1 2 . . 1 . . . . 1 . . 2 . 1 . Weapon 6 | . . 2 3 . . . . . . 1 . . . . . . . Tool/Special 1 | . . . . . . . . . . . . . . 1 . . . Average Slot Usage (%) 87 | . 85 93 99 98 100 99 99 98 86 85 91 86 84 72 21 37 27 Engine 4 | . 14 11 9 7 7 7 6 7 2 . . . . . . 4 . Core 1 | . . . . . . . . . 2 6 6 6 5 . 1 . . Reactor 2 | . . . . . . . . . 7 6 6 6 5 3 . . . Leg 18 | . 28 32 27 23 23 23 23 23 19 12 7 13 13 8 7 12 . Wheel 1 | . . . . . . . . . . 6 10 . . 2 . 4 . Device 16 | . . 6 26 27 29 28 29 25 7 13 13 13 15 10 5 4 11 Storage 7 | . 14 13 9 7 7 7 7 7 10 6 6 6 6 4 . . . Processor 3 | . . 1 . . . . . . 5 6 6 6 6 10 . . 1 Protection 7 | . . 5 9 6 7 8 7 12 7 6 13 13 9 9 . . 4 Energy Gun 13 | . 12 6 12 15 17 11 14 21 13 13 17 16 15 12 1 4 2 Energy Cannon 1 | . . 5 3 . . . . . . 3 . . . . . . . Slashing Weapon 2 | . . 1 1 5 5 4 4 . 4 . 1 3 3 1 . . . Peak Build Rating 102 | 6 10 25 39 52 54 54 59 59 85 77 100 99 98 102 63 53 66 Average Rating 59 | 4 9 17 35 46 49 51 53 54 76 70 83 97 95 89 29 39 29 On Entrance 45 | . 6 10 23 38 51 54 51 59 53 77 67 98 97 86 2 47 3 Naked Turns 54 | . . . . . . . . . . . . . . 19 10 20 5 Heaviest Build 81 | 14 18 32 41 47 49 50 52 54 78 81 70 63 66 68 35 25 22 Greatest Support 160 | 20 26 45 45 48 53 53 56 56 78 78 80 66 66 160 75 75 22 Greatest Overweight (x) 9 | . . 1 . 1 . . . 1 . 7 3 . . 9 1 . 5 Average Overweight (x) . | . . . . . . . . . . 1 2 . . . . . . Largest Inventory Capacity 15 | 8 8 10 10 10 10 10 10 10 10 10 10 10 10 15 5 5 5 Average Capacity 10 | 7 8 9 10 10 10 10 10 10 10 10 10 10 10 14 5 5 5 Most Carried 15 | 1 7 10 10 10 10 10 10 10 10 10 10 10 10 15 5 5 5 Average Carried 9 | . 5 9 9 9 9 9 9 9 9 9 9 9 9 11 4 4 3 Final Capacity 10 | 8 8 10 10 10 10 10 10 10 10 10 10 10 10 5 5 5 5 Final Carried 10 | 1 7 10 10 10 10 10 10 10 10 10 10 10 10 5 4 5 2 Class Distribution -------------------- 21% | Mutant 14% | Messiah-Mutant 14% | Scavenger-Mutant 12% | Scavenger-Tank 11% | Infiltrator-Mutant 9% | Derelict-Tank 7% | Messiah-Tank 5% | Derelict-Mutant Dominant Class ---------------- Mutant | -10/Materials Mutant | -9/Materials Mutant | -8/Materials Scavenger-Mutant | -7/Factory Infiltrator-Mutant | -7/Lower Caves Infiltrator-Mutant | -7/Lower Caves Infiltrator-Mutant | -7/Zion Derelict-Tank | -6/Proximity Caves Messiah-Mutant | -6/Factory Scavenger-Tank | -6/Extension Scavenger-Tank | -6/Cetus Scavenger-Mutant | -6/Archives Commander-Mutant | -6/Hub_04(d) Messiah-Tank | -5/Factory Messiah-Tank | -4/Factory Mutant | -4/Waste Mutant | -4/Factory Resources | -11 -10 -9 -8 -7 -7 -7 -7 -6 -6 -6 -6 -6 -6 -5 -4 -4 -4 ----------- Run | Yrd Mat Mat Mat Fac Low Low Zio Pro Fac Ext Cet Arc Hub Fac Fac Was Fac Matter Collected 3927 | 226 . 677 163 290 73 111 88 180 438 489 185 20 75 345 274 . 293 Remotely . | . . . . . . . . . . . . . . . . . . Salvage Created 6706 | . 68 702 599 678 . 201 . 357 892 1059 160 123 265 1162 79 . 361 Parts 330 | . 5 46 26 42 . 12 . 15 54 42 7 9 16 43 6 . 7 Haulers Intercepted 7 | . . 3 1 . . . . . . . . . . 3 . . . Recyclers Shooed 9 | . . 2 . 2 . . . . 2 . . . . 2 . . 1 Parts Field Recycled . | . . . . . . . . . . . . . . . . . . Retrieved Matter . | . . . . . . . . . . . . . . . . . . Parts Self-Destructed 34 | . . . . . 3 9 . 22 . . . . . . . . . Prevented 7 | . . . . . . . . 7 . . . . . . . . . Kills | -11 -10 -9 -8 -7 -7 -7 -7 -6 -6 -6 -6 -6 -6 -5 -4 -4 -4 ------- Run | Yrd Mat Mat Mat Fac Low Low Zio Pro Fac Ext Cet Arc Hub Fac Fac Was Fac Combat Hostiles Destroyed 118 | . 2 19 9 13 . 6 . 8 17 17 2 1 3 15 2 . 4 Melee 5 | . . . . 1 . 1 . . . . . . . 3 . . . Guns 80 | . . 3 5 12 . 4 . 8 16 12 2 1 3 11 . . 3 Cannons 19 | . . 11 2 . . . . . 1 4 . . . . 1 . . AOE 8 | . 2 3 . . . 1 . . . . . . . . 1 . 1 Classes Destroyed 15 | . 1 4 3 2 . . . . 3 . . . 1 1 . . . Worker 7 | . . . 1 . . . . . 2 1 . . . 1 . . 2 Tunneler 2 | . . . . . . . . . 2 . . . . . . . . Hauler 7 | . . 3 1 . . . . . . . . . . 3 . . . Recycler 1 | . . . . . . . . . . . . . 1 . . . . Operator 3 | . . . 1 . . . . . 1 . . 1 . . . . . Watcher 3 | . . . . 1 . . . . . 1 . . 1 . . . . Swarmer 28 | . . 5 . 5 . 5 . 3 7 . . . 2 . 1 . . Grunt 36 | . 2 9 3 3 . . . 1 3 7 . . 1 4 1 . 2 Brawler 5 | . . 1 1 . . . . 2 1 . . . . . . . . Duelist 2 | . . . . . . . . . 1 1 . . . . . . . Sentry 21 | . . 4 4 3 . 1 . . 1 7 . 1 . . . . . Hunter 6 | . . . 1 . . . . 2 1 . . . . 2 . . . Programmer 14 | . . . . 2 . . . . 2 . . . . 8 . . 2 Behemoth 3 | . . . . . . . . . 1 2 . . . . . . . Cetus Guard 2 | . . . . . . . . . . . 2 . . . . . . Assembled 1 | . . . . . . . . . . . . . . 1 . . . Best Kill Streak 6 | . 2 3 6 3 . 3 . 3 5 4 1 2 2 3 1 . 2 Combat Bots Only 5 | . 2 3 3 3 . 3 . 3 5 3 1 1 2 3 1 . 2 Max Kills in Single Turn 2 | . 2 2 1 1 . 2 . 1 1 1 1 1 2 1 1 . 1 Gunslinging 1 | . . . . . . . . . . . . . 1 . . . . Exploded 2 | . 2 2 . . . 1 . . . . . . . . 1 . 1 Melee 1 | . . . . 1 . 1 . . . . . . . 1 . . . Uniques/NPCs Destroyed . | . . . . . . . . . . . . . . . . . . Combat | -11 -10 -9 -8 -7 -7 -7 -7 -6 -6 -6 -6 -6 -6 -5 -4 -4 -4 -------- Run | Yrd Mat Mat Mat Fac Low Low Zio Pro Fac Ext Cet Arc Hub Fac Fac Was Fac Hostile Shots Fired 1488 | . 37 57 57 190 . 81 . 46 164 176 8 11 43 410 124 3 81 Missed 486 | . 11 14 18 79 . 31 . 11 59 62 2 2 16 120 37 . 24 Deflected 4 | . . . . . . . . . . . . . . 4 . . . Hits 1002 | . 26 43 39 111 . 50 . 35 105 114 6 9 27 290 87 3 57 Melee 25 | . . 5 . . . . . . 2 1 . . . 14 . 3 . Projectile 977 | . 26 38 39 111 . 50 . 35 103 113 6 9 27 276 87 . 57 AOE 3 | . . . . . . . . . . . . . 1 2 . . . Critical Strikes 31 | . . . 5 . . . . 1 3 2 2 . 1 9 3 1 4 Part Disruptions 4 | . . . . 1 . . . . . . . . . 3 . . . Damage Taken 16654 | . 285 593 588 1217 . 522 . 743 1511 1215 117 263 825 5746 1511 147 1371 Core 2551 | . 57 73 64 212 . 83 . 69 167 102 . 25 35 691 448 147 378 Absorbed by Shields 814 | . . . . . . . . . 176 479 114 . . . . . 45 Redirected to Shielding 61 | . . . . . . . . . . . . . . . . . 61 Regen/Repaired (Parts) 1646 | . . . . 436 . . 631 . 579 . . . . . . . . Core Remaining (%) 69 | 100 77 81 88 . . . . 48 . . . . 61 30 . . . Volleys Fired 394 | . 9 46 39 39 . 12 . 22 61 43 11 4 8 53 5 . 42 Largest 3 | . 2 2 2 3 . 3 . 3 3 3 3 3 3 3 2 . 3 Hottest 287 | . 80 133 130 171 . 191 . 211 206 246 241 240 220 287 135 . 130 Shots Fired 829 | . 12 87 77 89 . 32 . 60 107 120 30 11 15 115 9 . 65 Gun 657 | . 3 21 63 89 . 32 . 60 104 79 30 11 15 102 4 . 44 Cannon 158 | . 3 64 14 . . . . . 3 41 . . . 13 4 . 16 Launcher 14 | . 6 2 . . . . . . . . . . . . 1 . 5 Special . | . . . . . . . . . . . . . . . . . . Kinetic 83 | . 3 52 . . . 1 . . . 3 . . . 13 4 . 7 Thermal 471 | . 3 33 26 38 . 21 . 44 18 103 30 11 15 87 4 . 38 Explosive 8 | . 6 2 . . . . . . . . . . . . . . . Electromagnetic 171 | . . . 51 51 . 10 . 16 7 . . . . 15 1 . 20 Phasic 96 | . . . . . . . . . 82 14 . . . . . . . Robot Hit Streak 20 | . 2 20 11 12 . 6 . 12 13 18 7 5 4 13 5 . 13 Robot Miss Streak 5 | . 3 3 4 3 . 4 . 2 5 5 3 1 1 4 4 . 2 Penetration Max . | . . . . . . . . . . . . . . . . . . Secondary Targets 12 | . . 1 . . . 1 . 1 2 . 1 . 2 3 . . 1 Max Gunslinging Chain 1 | . . 1 . . . 1 . 1 1 . 1 . 1 1 . . 1 Shots Hit Robots 613 | . 3 63 56 67 . 20 1 42 70 103 25 11 9 90 5 . 48 Core Hits 269 | . 4 23 17 26 . 10 . 21 31 56 10 5 10 33 4 . 19 Critical Kills 3 | . . 1 . . . . . . . 1 . . . 1 . . . Critical Parts Destroyed 5 | . . . . . . . . . . . 3 1 . 1 . . . Critical Strikes 30 | . . 2 1 7 . 1 . 4 2 3 3 1 . 4 1 . 1 Burn 12 | . . . 1 4 . 1 . 4 . 2 . . . . . . . Meltdown 2 | . . 1 . . . . . . . 1 . . . . . . . Destroy 6 | . . . . . . . . . . . 3 1 . 2 . . . Blast 3 | . . 1 . . . . . . . . . . . 1 1 . . Corrupt 5 | . . . . 3 . . . . . . . . . 1 . . 1 Intensify 2 | . . . . . . . . . 2 . . . . . . . . Melee Attacks 92 | . . 2 1 14 2 3 1 3 10 23 7 2 4 20 . . . Impact 1 | . . 1 . . . . . . . . . . . . . . . Slashing 48 | . . 1 1 10 2 3 . . 8 . 4 2 4 13 . . . Piercing . | . . . . . . . . . . . . . . . . . . Sneak Attacks 46 | . . . . 3 . . 1 3 4 23 3 1 1 7 . . . Combat Hostiles . | . . . . . . . . . . . . . . . . . . Follow-up Attacks . | . . . . . . . . . . . . . . . . . . Martial Strikes 2 | . . . . . . . . . . . . . . 2 . . . Damage Inflicted 15743 | . 162 1430 1215 1267 . 453 . 896 2269 2258 582 450 855 2704 204 . 998 Guns 10583 | . 25 286 878 1094 . 308 . 896 1910 1496 582 273 245 2183 51 . 356 Cannons 2711 | . 19 837 275 . . . . . 92 759 . . . 319 106 . 304 Explosions 1432 | . 118 236 34 44 . 116 . . . . . . 499 . 47 . 338 Melee 823 | . . 50 . 120 . 29 . . 166 . . 177 85 196 . . . Ramming 194 | . . 21 28 9 . . . . 101 3 . . 26 6 . . . Kinetic 1184 | . 19 566 . . . . . . . 49 . . . 319 106 . 125 Thermal 8883 | . 25 557 481 712 . 357 . 699 384 1934 582 273 245 2080 51 . 503 Explosive 354 | . 118 236 . . . . . . . . . . . . . . . Electromagnetic 2509 | . . . 706 426 . 67 . 197 94 . . . 499 103 47 . 370 Impact 50 | . . 50 . . . . . . . . . . . . . . . Slashing 773 | . . . . 120 . 29 . . 166 . . 177 85 196 . . . Piercing . | . . . . . . . . . . . . . . . . . . Phasic 1796 | . . . . . . . . . 1524 272 . . . . . . . Highest Corruption 52 | . . . . 3 3 3 3 . . . . . 5 52 . 6 11 Average Corruption 7 | . . . . 2 3 3 3 . . . . . 2 23 . 6 7 Corruption Purged 4 | . . . . 4 . . . . . . . . . . . . . Corruption Blocked . | . . . . . . . . . . . . . . . . . . Effects 87 | . . . . 12 6 10 2 . . . . . 3 33 . 4 17 Message Errors 20 | . . . . 6 2 1 1 . . . . . 2 2 . 2 4 Matter Fused 16 | . . . . 2 2 3 1 . . . . . . 4 . . 4 Heat Flow Errors 7 | . . . . . 1 . . . . . . . . 4 . . 2 Energy Discharges 10 | . . . . 1 1 . . . . . . . 1 5 . . 2 Parts Rejected 2 | . . . . . . 1 . . . . . . . 1 . . . Parts Fused 1 | . . . . . . . . . . . . . . 1 . . . Data Loss (minor) 12 | . . . . 3 . 1 . . . . . . . 5 . 1 2 Data Loss (major) 1 | . . . . . . . . . . . . . . 1 . . . Misfires 4 | . . . . . . 1 . . . . . . . 2 . . 1 Alerts 2 | . . . . . . . . . . . . . . . . 1 1 Misdirections 5 | . . . . . . . . . . . . . . 5 . . . Weapon Failures 7 | . . . . . . 3 . . . . . . . 3 . . 1 Overload Shots 2 | . . . . . . . . . . . 1 . . 1 . . . Overflow Damage 305 | . . 58 9 . . . . . 64 3 . 60 . 32 1 . 78 Projectiles 49 | . . . 8 . . . . . . 3 . . . . . . 38 Explosions 55 | . . 14 . . . . . . . . . . . . 1 . 40 Melee 201 | . . 44 1 . . . . . 64 . . 60 . 32 . . . Knockbacks 15 | . . 5 1 . . . . . 1 1 . . . 5 1 . 1 Impact 4 | . . 1 1 . . . . . 1 1 . . . . . . . Kinetic 10 | . . 4 . . . . . . . . . . . 4 1 . 1 Secondary 1 | . . . . . . . . . . . . . . 1 . . . Self-Inflicted Damage 442 | . 37 . 9 52 . 25 . . . . . . 106 . 2 . 211 Shots 13 | . 2 . 1 1 . 1 . . . . . . 1 . 1 . 6 Rammed 1 | . . . . . . . . . . . . . . 1 . . . Targets Rammed 18 | . . 3 2 3 . . . . 7 1 . . 1 1 . . . Kicked 17 | . . 3 2 3 . . . . 7 1 . . 1 . . . . Crushed . | . . . . . . . . . . . . . . . . . . Highest Temperature 457 | . 64 390 355 162 161 199 . 199 457 444 223 113 126 330 147 . 229 Average Temperature 102 | . 26 119 58 64 99 74 . 92 119 161 96 66 57 76 61 . 65 Received Heat Transfer 2628 | . 60 189 261 162 . 114 . 84 479 473 4 45 39 426 144 . 148 Effects 25 | . . 4 . . . . . . 8 11 . . . 2 . . . Shutdowns 3 | . . 1 . . . . . . 1 1 . . . . . . . Energy Bleed 1 | . . . . . . . . . . 1 . . . . . . . Interference 12 | . . 2 . . . . . . 2 6 . . . 2 . . . Matter Decay 1 | . . . . . . . . . . 1 . . . . . . . Short Circuit 3 | . . . . . . . . . 1 2 . . . . . . . Damage (minor) 1 | . . 1 . . . . . . . . . . . . . . . Damage (major) 4 | . . . . . . . . . 4 . . . . . . . . Siege Activations . | . . . . . . . . . . . . . . . . . . Martial Activations 1 | . . . . . . . . . . . . . . 1 . . . Total Turns 66 | . . . . . . . . . . . . . . 66 . . . Longest Duration 66 | . . . . . . . . . . . . . . 66 . . . Shielding Activations . | . . . . . . . . . . . . . . . . . . Robots Disrupted . | . . . . . . . . . . . . . . . . . . Combat Hostiles . | . . . . . . . . . . . . . . . . . . Robots Corrupted 6 | . . 1 4 . . . . . 1 . . . . . . . . Combat Hostiles 3 | . . 1 2 . . . . . . . . . . . . . . Parts Fried 19 | . . . 9 1 . . . 3 2 . . . 1 1 . . 2 Impact Corruptions 5 | . . 3 1 . . . . . 1 . . . . . . . . Robots Melted 4 | . . 1 . . . . . . . 1 . . . 2 . . . Combat Hostiles 3 | . . 1 . . . . . . . 1 . . . 1 . . . Parts Melted 50 | . . 4 . 8 . 2 . 4 . 13 . 1 . 10 . . 8 Heat Transferred 15184 | . 74 1073 864 1530 . 668 . 1443 592 3450 925 370 333 2491 74 . 1297 Parts Sabotaged . | . . . . . . . . . . . . . . . . . . Parts Stolen . | . . . . . . . . . . . . . . . . . . Parts Stripped . | . . . . . . . . . . . . . . . . . . Power Chain Reactions 7 | . . . 1 1 . 1 . . . . . . . . . . 4 Alert | -11 -10 -9 -8 -7 -7 -7 -7 -6 -6 -6 -6 -6 -6 -5 -4 -4 -4 ------- Run | Yrd Mat Mat Mat Fac Low Low Zio Pro Fac Ext Cet Arc Hub Fac Fac Was Fac Maximum Alert Level 3 | . . 1 . . . . . . 2 2 1 1 3 2 . . 1 Low Security (%) 48 | 100 100 97 100 100 . . . . 39 6 . 25 41 1 100 100 75 Level 1 36 | . . 2 . . . . . . 30 58 100 74 9 89 . . 24 Level 2 14 | . . . . . . . . . 29 34 . . 41 8 . . . Level 3 . | . . . . . . . . . . . . . 8 . . . . Level 4 . | . . . . . . . . . . . . . . . . . . Level 5 . | . . . . . . . . . . . . . . . . . . High Security . | . . . . . . . . . . . . . . . . . . Max Security . | . . . . . . . . . . . . . . . . . . Peak Influence 934 | . 141 210 167 104 . . . . 653 544 370 258 934 450 103 8 319 Initial 450 | . . 55 55 72 . . . . 81 316 255 113 79 450 88 8 . Average 214 | . 28 112 46 33 . . . . 285 350 298 219 371 301 72 1 102 Influence Increases 7578 | . 175 644 369 456 . 145 . 539 1298 992 392 185 1230 488 107 . 558 Destroy 0b10 Robot/C 3440 | . 40 380 180 260 . 120 . 360 560 560 160 80 260 300 40 . 140 Destroy 0b10 Robot/NC 145 | . . 15 15 5 . . . . 25 15 10 5 25 20 . . 10 Destroy Leader 656 | . 10 106 62 82 . 10 . 30 130 64 . . 66 66 . . 30 Allied During Kill 1076 | . . . . . . . . 134 73 255 170 85 342 2 . . 15 Successful Hack 179 | . 16 59 15 34 . . . . 30 14 . . . . 5 . 6 Select Force Hacks 60 | . 30 30 . . . . . . . . . . . . . . . Disable Machine 705 | . 30 30 . . . . . . 75 30 15 15 390 45 . . 75 Anti-Garrison Action 350 | . . . . . . . . . 200 . . . . . . . 150 Destroy Structure 412 | . 49 9 7 15 . . . . 40 39 7 . 132 40 2 . 72 Partial Spotted 15 | . . . . . . . . . 15 . . . . . . . . Lose Combat Pursuer 540 | . . 15 90 60 . 15 . 15 150 15 30 . 15 15 60 . 60 Influence Decreases 7347 | . 44 644 341 615 . 130 15 408 782 1182 566 240 539 1225 264 25 327 Entered New Map 1736 | . . 76 76 87 . . 15 . 50 331 202 170 149 469 94 17 . Time Decay 3971 | . 44 398 260 481 . 110 . 368 534 601 254 50 140 506 60 8 157 Lost Part 622 | . . 20 5 47 . 20 . 20 40 30 10 . 20 230 50 . 130 Lost Ally 868 | . . . . . . . . 20 158 220 100 20 230 20 60 . 40 Purge Threat 150 | . . 150 . . . . . . . . . . . . . . . Squads Dispatched 39 | . 1 2 1 4 . . . . 10 2 . . 4 10 . . 5 Investigation 8 | . 1 2 . 1 . . . . 3 . . . . . . . 1 Extermination 11 | . . . . 3 . . . . 3 . . . . 4 . . 1 Reinforcement 13 | . . . 1 . . . . . 3 2 . . 4 3 . . . Assault 2 | . . . . . . . . . . . . . . . . . 2 Garrison 5 | . . . . . . . . . 1 . . . . 3 . . 1 Intercept . | . . . . . . . . . . . . . . . . . . Searches Triggered . | . . . . . . . . . . . . . . . . . . Construction Impeded 5 | . . . . . . . . . 1 1 . . 1 2 . . . Haulers Reinforced 1 | . . . . . . . . . . . . . . 1 . . . Active Scanning Responses . | . . . . . . . . . . . . . . . . . . Cargo Convoy Interrupts 1 | . . . . . . . . . . . . . . 1 . . . Stealth | -11 -10 -9 -8 -7 -7 -7 -7 -6 -6 -6 -6 -6 -6 -5 -4 -4 -4 --------- Run | Yrd Mat Mat Mat Fac Low Low Zio Pro Fac Ext Cet Arc Hub Fac Fac Was Fac Distress Signals 17 | . . 7 . . . . . . 1 . 2 . 3 4 . . . Communications Jammed . | . . . . . . . . . . . . . . . . . . Distress Signals . | . . . . . . . . . . . . . . . . . . Times Spotted 280 | . 8 29 16 22 . 8 . 19 45 28 10 6 21 38 12 6 12 Peak Tracking Total 9 | . 6 4 6 4 . 3 . 5 9 7 5 2 5 9 7 6 3 Tactical Retreats 24 | . . 1 5 3 . 1 . 1 5 1 1 . 1 1 2 . 2 Traps | -11 -10 -9 -8 -7 -7 -7 -7 -6 -6 -6 -6 -6 -6 -5 -4 -4 -4 ------- Run | Yrd Mat Mat Mat Fac Low Low Zio Pro Fac Ext Cet Arc Hub Fac Fac Was Fac Traps Triggered 10 | . . . . 3 . . . . . 2 . . 2 1 1 . 1 Indirectly 2 | . . . . . . . . . . . . . 1 . . . 1 Trap Hack Attempts . | . . . . . . . . . . . . . . . . . . Triggered . | . . . . . . . . . . . . . . . . . . Disarmed . | . . . . . . . . . . . . . . . . . . Reprogrammed . | . . . . . . . . . . . . . . . . . . Reused . | . . . . . . . . . . . . . . . . . . Traps Extracted . | . . . . . . . . . . . . . . . . . . Installed . | . . . . . . . . . . . . . . . . . . Triggered . | . . . . . . . . . . . . . . . . . . Machines | -11 -10 -9 -8 -7 -7 -7 -7 -6 -6 -6 -6 -6 -6 -5 -4 -4 -4 ---------- Run | Yrd Mat Mat Mat Fac Low Low Zio Pro Fac Ext Cet Arc Hub Fac Fac Was Fac Machines Disabled 51 | . 2 2 . . . . . . 5 4 2 1 26 3 . . 6 Max in Single Turn 24 | . 1 1 . . . . . . 1 1 1 . 24 1 . . 2 Garrison Access 2 | . . . . . . . . . 1 . . . . . . . 1 Network Hub 2 | . . . . . . . . . . . . . 2 . . . . Energy Cycler 1 | . . . . . . . . . . 1 . . . . . . . Machines Repaired . | . . . . . . . . . . . . . . . . . . Machines Dismantled . | . . . . . . . . . . . . . . . . . . Machines Sabotaged . | . . . . . . . . . . . . . . . . . . Overloaded Fab Kills . | . . . . . . . . . . . . . . . . . . Hacking | -11 -10 -9 -8 -7 -7 -7 -7 -6 -6 -6 -6 -6 -6 -5 -4 -4 -4 --------- Run | Yrd Mat Mat Mat Fac Low Low Zio Pro Fac Ext Cet Arc Hub Fac Fac Was Fac Machines Accessed 42 | . 2 11 4 9 1 . . . 7 3 2 . . 1 1 . 1 Terminals 24 | . 1 9 3 6 . . . . . 3 2 . . . . . . Fabricators 2 | . . . . . . . . . 2 . . . . . . . . Repair Stations 5 | . . . . 2 . . . . 2 . . . . . . . 1 Recycling Units 3 | . 1 1 . 1 . . . . . . . . . . . . . Scanalyzers 5 | . . 1 1 . . . . . 1 . . . . 1 1 . . Garrison Access 2 | . . . . . . . . . 2 . . . . . . . . Total Hacks 145 | . 8 45 18 34 1 . . . 16 7 2 . . 2 9 . 3 Successful 90 | . 3 29 13 23 1 . . . 8 2 1 . . . 8 . 2 Failed 55 | . 5 16 5 11 . . . . 8 5 1 . . 2 1 . 1 Catastrophic 12 | . 1 3 2 . . . . . 3 1 1 . . . . . 1 Database Lockouts . | . . . . . . . . . . . . . . . . . . Manual 123 | . 2 24 2 19 . . . . 36 17 1 . 13 3 3 . 3 Terminals 76 | . 4 35 5 23 . . . . . 7 2 . . . . . . Fabricators 5 | . . . . . . . . . 5 . . . . . . . . Repair Stations 14 | . . . . 6 . . . . 5 . . . . . . . 3 Recycling Units 11 | . 4 2 . 5 . . . . . . . . . . . . . Scanalyzers 34 | . . 8 13 . . . . . 2 . . . . 2 9 . . Garrison Access 4 | . . . . . . . . . 4 . . . . . . . . Terminal Hacks 22 | . 1 13 . 4 1 . . . . 2 1 . . . . . . Record 1 | . . . . . . . . . . . 1 . . . . . . Robot Analysis 3 | . . 2 . 1 . . . . . . . . . . . . . Prototype ID Bank 4 | . . 3 . 1 . . . . . . . . . . . . . Open Door 3 | . . . . . 1 . . . . 2 . . . . . . . Branch Access Points 1 | . . . . 1 . . . . . . . . . . . . . Terminal Index 1 | . . 1 . . . . . . . . . . . . . . . Recycling Unit Index 1 | . 1 . . . . . . . . . . . . . . . . Scanalyzer Index 1 | . . 1 . . . . . . . . . . . . . . . Unreport Threat 1 | . . 1 . . . . . . . . . . . . . . . Locate Traps 1 | . . . . 1 . . . . . . . . . . . . . Recall Investigation 1 | . . 1 . . . . . . . . . . . . . . . Hauler Manifests 1 | . . 1 . . . . . . . . . . . . . . . Registered Components 1 | . . 1 . . . . . . . . . . . . . . . Registered Prototypes 1 | . . 1 . . . . . . . . . . . . . . . Zone Layout 1 | . . 1 . . . . . . . . . . . . . . . Fabricator Hacks 2 | . . . . . . . . . 2 . . . . . . . . Load Schematic 1 | . . . . . . . . . 1 . . . . . . . . Build 1 | . . . . . . . . . 1 . . . . . . . . Repair Station Hacks 11 | . . . . 6 . . . . 3 . . . . . . . 2 Scan Component 6 | . . . . 3 . . . . 2 . . . . . . . 1 Repair 4 | . . . . 3 . . . . 1 . . . . . . . . Refit 1 | . . . . . . . . . . . . . . . . . 1 Recycling Unit Hacks 3 | . 1 1 . 1 . . . . . . . . . . . . . Report Inventory 3 | . 1 1 . 1 . . . . . . . . . . . . . Scanalyzer 30 | . . 8 12 . . . . . 2 . . . . . 8 . . Insert Component 13 | . . 3 6 . . . . . 1 . . . . . 3 . . Analyze 17 | . . 5 6 . . . . . 1 . . . . . 5 . . Garrison Access Hacks . | . . . . . . . . . . . . . . . . . . Unauthorized Hacks 22 | . 1 7 1 12 . . . . 1 . . . . . . . . Terminals 15 | . . 6 1 8 . . . . . . . . . . . . . Assimilate 1 | . . . . 1 . . . . . . . . . . . . . Botnet 9 | . . 5 1 3 . . . . . . . . . . . . . Operators 2 | . . 1 . 1 . . . . . . . . . . . . . Skim 3 | . . . . 3 . . . . . . . . . . . . . Fabricators . | . . . . . . . . . . . . . . . . . . Repair Stations . | . . . . . . . . . . . . . . . . . . Recycling Units 6 | . 1 1 . 4 . . . . . . . . . . . . . Monitor 1 | . . . . 1 . . . . . . . . . . . . . Reject 1 | . . . . 1 . . . . . . . . . . . . . Recyclers 1 | . . . . 1 . . . . . . . . . . . . . Mask 1 | . . . . 1 . . . . . . . . . . . . . Tunnel 2 | . 1 1 . . . . . . . . . . . . . . . Scanalyzers . | . . . . . . . . . . . . . . . . . . Garrison Access 1 | . . . . . . . . . 1 . . . . . . . . Jam 1 | . . . . . . . . . 1 . . . . . . . . Data Cores Recovered 1 | . . . . . . . . . . . . . 1 . . . . Used . | . . . . . . . . . . . . . . . . . . Hacking Detections 35 | . 1 10 4 9 . . . . 6 1 1 . . 1 1 . 1 Full Trace Events 3 | . . 1 . 1 . . . . 1 . . . . . . . . Feedback Events . | . . . . . . . . . . . . . . . . . . Feedback Blocked . | . . . . . . . . . . . . . . . . . . Robot Schematics Acquired 4 | . . . . . . . . . . 4 . . . . . . . Robots Built . | . . . . . . . . . . . . . . . . . . Authchips . | . . . . . . . . . . . . . . . . . . Time . | . . . . . . . . . . . . . . . . . . Total Robot Build Rating . | . . . . . . . . . . . . . . . . . . Part Schematics Acquired 66 | . . 3 5 . . . . . 30 16 . . 9 . 3 . . Parts Built . | . . . . . . . . . . . . . . . . . . Authchips . | . . . . . . . . . . . . . . . . . . Time 152 | . . . . . . . . . 152 . . . . . . . . Total Part Build Rating . | . . . . . . . . . . . . . . . . . . Parts Repaired 4 | . . . . 3 . . . . 1 . . . . . . . . Time 158 | . . . . 136 . . . . 22 . . . . . . . . Parts Recycled . | . . . . . . . . . . . . . . . . . . Recycled Matter . | . . . . . . . . . . . . . . . . . . Retrieved Matter . | . . . . . . . . . . . . . . . . . . Retrieved Components . | . . . . . . . . . . . . . . . . . . Parts Scanalyzed 12 | . . 3 5 . . . . . 1 . . . . . 3 . . Part Schematics Acquired 12 | . . 3 5 . . . . . 1 . . . . . 3 . . Parts Damaged . | . . . . . . . . . . . . . . . . . . Bothacking | -11 -10 -9 -8 -7 -7 -7 -7 -6 -6 -6 -6 -6 -6 -5 -4 -4 -4 ------------ Run | Yrd Mat Mat Mat Fac Low Low Zio Pro Fac Ext Cet Arc Hub Fac Fac Was Fac Used RIF Installer . | . . . . . . . . . . . . . . . . . . Robots Hacked 13 | . . . . 4 . . 1 . 2 . 3 . . 3 . . . Non-combat 8 | . . . . 4 . . . . 1 . . . . 3 . . . Combat 5 | . . . . . . . 1 . 1 . 3 . . . . . . Robot Hacks Applied 16 | . . . . 4 . . 1 . 2 . 3 . . 6 . . . parse_system 6 | . . . . 1 . . 1 . 1 . 3 . . . . . . no_distress 5 | . . . . 1 . . . . 1 . . . . 3 . . . find_chute 1 | . . . . 1 . . . . . . . . . . . . . find_fabricator 3 | . . . . . . . . . . . . . . 3 . . . find_station 1 | . . . . 1 . . . . . . . . . . . . . Relay Couplers Released 2 | . . . . . . . . . . . . . . . . . 2 Machine Destruction 2 | . . . . . . . . . . . . . . . . . 2 Fabnet Peak Effective % . | . . . . . . . . . . . . . . . . . . Robots Rewired 15 | . . . . . . . . 2 . 12 . . . 1 . . . Allies Hacked . | . . . . . . . . . . . . . . . . . . Hacks Repelled . | . . . . . . . . . . . . . . . . . . Allies | -11 -10 -9 -8 -7 -7 -7 -7 -6 -6 -6 -6 -6 -6 -5 -4 -4 -4 -------- Run | Yrd Mat Mat Mat Fac Low Low Zio Pro Fac Ext Cet Arc Hub Fac Fac Was Fac Total Allies 49 | . . . . 1 . . 4 2 4 27 5 . . 1 3 . 2 Largest Group 17 | . . . . 1 1 . 4 5 4 16 17 15 13 1 3 . 2 Highest-Rated Group 1101 | . . . . 10 10 . 153 164 340 807 1101 1039 832 12 117 . 100 Highest-Rated Ally 159 | . . . . 10 10 . 39 39 85 159 159 159 96 12 39 . 50 Zionite Dispatches 7 | . . . . . . . . . 2 2 . . 1 . 1 . 1 Heavy 3 | . . . . . . . . . 2 1 . . . . . . . Light 1 | . . . . . . . . . . 1 . . . . . . . Recon 1 | . . . . . . . . . . . . . 1 . . . . Fire 1 | . . . . . . . . . . . . . . . 1 . . Demo 1 | . . . . . . . . . . . . . . . . . 1 Total Orders 38 | . . . . . . . . 1 6 1 3 . 8 11 4 . 4 STAY 1 | . . . . . . . . . . . 1 . . . . . . ROAM 3 | . . . . . . . . . . . . . . 2 . . 1 GUARD 5 | . . . . . . . . 1 . 1 2 . 1 . . . . EXPLORE 21 | . . . . . . . . . 4 . . . 5 6 3 . 3 RETURN 8 | . . . . . . . . . 2 . . . 2 3 1 . . Ally Attacks 335 | . . . . . . . . 43 41 98 61 17 61 4 . . 10 Total Damage 10778 | . . . . . . . . 1467 2371 2336 1563 452 1880 43 . . 666 Kills 63 | . . . . . . . . 11 11 12 9 3 13 1 . . 3 Allies Corrupted 5 | . . . . . . . . 1 . . . . 4 . . . . Allies Melted 2 | . . . . . . . . . . . . . 2 . . . . Intel | -11 -10 -9 -8 -7 -7 -7 -7 -6 -6 -6 -6 -6 -6 -5 -4 -4 -4 ------- Run | Yrd Mat Mat Mat Fac Low Low Zio Pro Fac Ext Cet Arc Hub Fac Fac Was Fac Active Infowar (turns) 11908 | . . 495 577 1381 429 432 1216 1023 1836 1883 552 101 294 1346 1 . 342 Optics 1246 | . . . . . . . . . . . . . . 1246 . . . IFF 2784 | . . . . . . . . . 499 1074 14 . 118 737 . . 342 Structural 5541 | . . 383 577 1276 424 381 1154 877 469 . . . . . . . . Decoding 5934 | . . . . . . . . . 1758 1883 552 101 294 1346 . . . T.N.C. 112 | . . 112 . . . . . . . . . . . . . . . Jamming 3665 | . . . . 1026 429 432 1216 561 . . . . . . 1 . . Robot Analysis Total 3 | . . 2 . 1 . . . . . . . . . . . . . Derelict Logs Recovered 5 | . . . . . 1 1 1 2 . . . . . . . . . Drone Launches 23 | . . . . . . . . . 4 . . . 6 6 3 . 4 Drone Recoveries 17 | . . . . . . . . . 2 . . . 4 6 3 . 2 Decoded 0b10 Intel 73 | . . . . . . . . . 36 9 . . 9 19 . . . Garrisons 1 | . . . . . . . . . . . . . 1 . . . . Patrols 27 | . . . . . . . . . 16 5 . . 3 3 . . . Investigations 6 | . . . . . . . . . 6 . . . . . . . . Reinforcements 13 | . . . . . . . . . 3 2 . . 3 5 . . . Guards 26 | . . . . . . . . . 11 2 . . 2 11 . . . Zionite Intel Received 11 | . . . . . . . . . 7 2 . . 2 . . . . Branch Access 1 | . . . . . . . . . 1 . . . . . . . . Emergency Access 1 | . . . . . . . . . 1 . . . . . . . . Component Schematics 2 | . . . . . . . . . 1 1 . . . . . . . Prototype Schematics 3 | . . . . . . . . . 2 . . . 1 . . . . Unaware Schematics 1 | . . . . . . . . . . 1 . . . . . . . Trap Installations 1 | . . . . . . . . . 1 . . . . . . . . Active Terminals 2 | . . . . . . . . . 1 . . . 1 . . . . Exploration | -11 -10 -9 -8 -7 -7 -7 -7 -6 -6 -6 -6 -6 -6 -5 -4 -4 -4 ------------- Run | Yrd Mat Mat Mat Fac Low Low Zio Pro Fac Ext Cet Arc Hub Fac Fac Was Fac Turns Passed 13162 | 64 169 954 601 1455 429 432 1216 1053 1836 1922 552 101 294 1365 124 88 507 Spaces Moved 8821 | 47 105 602 370 1050 338 304 946 728 1200 1236 232 45 184 811 118 91 414 Core 495 | 3 . . . . . . . . . . . . . 39 89 38 326 Treads 139 | . . . . . . . . . . . 1 . . 138 . . . Legs 7237 | 44 105 602 370 1050 338 304 946 728 1200 552 53 45 184 634 29 53 . Wheels 862 | . . . . . . . . . . 684 178 . . . . . . Hover 88 | . . . . . . . . . . . . . . . . . 88 Flight . | . . . . . . . . . . . . . . . . . . Fastest Speed 50 | 50 120 120 110 110 120 123 123 123 120 120 110 125 125 50 50 50 50 Average Speed 118 | 115 120 120 116 115 122 123 123 123 122 126 122 125 125 129 70 90 64 Slowest Speed 500 | 120 120 190 120 186 123 123 123 193 130 230 160 125 125 500 190 120 320 Overloaded Moves 6 | . . . . . . . . . . . . . . 6 . . . Propulsion Burnouts . | . . . . . . . . . . . . . . . . . . Robots Hopped . | . . . . . . . . . . . . . . . . . . Potential Cave-ins . | . . . . . . . . . . . . . . . . . . Cave-ins Triggered . | . . . . . . . . . . . . . . . . . . Exploration Rate (%) 49 | 4 26 57 39 27 51 57 89 92 50 97 68 64 43 23 3 87 16 Regions Visited 17 Branch Regions 8 Pre-discovered Areas 2 | . 1 1 . . . . . . . . . . . . . . . Known Exits Taken 3 | . . . . 1 . . . . 1 . . . 1 . . . . Unknown Exits Taken 12 | 1 1 1 1 . 1 1 1 1 . 1 1 1 . 1 . . . Scrap Searched 10 | . . . . . 2 4 4 . . . . . . . . . . Spaces Dug 44 | . . 1 1 7 2 2 . . 18 . . . 3 6 . . 4 Terrain Destroyed 372 | . 46 9 5 13 2 6 . . 32 38 . . 183 15 1 . 22 Melee 26 | . . 1 1 7 2 2 . . 6 . . . 3 4 . . . Projectile 60 | . . . 2 . . . . . 26 15 . . 1 11 1 . 4 AOE 286 | . 46 8 2 6 . 4 . . . 23 . . 179 . . . 18 Terrain Rammed . | . . . . . . . . . . . . . . . . . . Walls Destroyed . | . . . . . . . . . . . . . . . . . . Machines Disabled . | . . . . . . . . . . . . . . . . . . Actions | -11 -10 -9 -8 -7 -7 -7 -7 -6 -6 -6 -6 -6 -6 -5 -4 -4 -4 --------- Run | Yrd Mat Mat Mat Fac Low Low Zio Pro Fac Ext Cet Arc Hub Fac Fac Was Fac Total 10603 | 53 134 743 465 1181 348 329 996 825 1443 1487 470 78 225 991 145 97 593 Wait 676 | . . 23 11 20 1 . 33 51 82 97 180 23 19 40 5 . 91 Move 8805 | 46 104 601 369 1049 337 303 945 727 1199 1235 231 44 183 810 118 90 414 Hop . | . . . . . . . . . . . . . . . . . . Pick Up 117 | 1 9 21 11 14 1 3 3 2 13 14 6 1 1 12 2 3 . Fast Attach 98 | 6 1 3 3 2 . 2 2 2 10 13 10 . 2 14 10 . 18 Attach 56 | . . 7 4 10 . 1 . 1 6 3 2 . . 6 4 1 11 Detach 16 | . . 1 . 1 . . . . 1 1 . . . . 1 . 11 Swap 187 | . 7 16 9 23 5 3 7 15 31 29 6 2 6 28 . . . Drop 141 | . 4 20 16 6 2 2 5 2 23 23 17 2 1 9 . 3 6 Fire 394 | . 9 46 39 39 . 12 . 22 61 43 11 4 8 53 5 . 42 Melee 90 | . . 2 1 14 2 3 1 3 10 23 7 2 4 18 . . . Ram . | . . . . . . . . . . . . . . . . . . Kick 17 | . . 3 2 3 . . . . 7 1 . . 1 . . . . Crush 1 | . . . . . . . . . . . . . . 1 . . . Escape Stasis 5 | . . . . . . . . . . 5 . . . . . . . Rewire . | . . . . . . . . . . . . . . . . . . Trap . | . . . . . . . . . . . . . . . . . . Miscellaneous . | . . . . . . . . . . . . . . . . . . Route ------- -11/Scrapyard -10/Materials -9/Materials -8/Materials (discovered 2 exits: *Fac x2) -7/Factory (discovered 4 exits: *Fac / Sto / *Low x2) -7/Lower Caves (discovered 2 exits: [*Low] / [*Zio]) -7/Lower Caves (discovered 2 exits: *Fac / [*Zio]) -7/Zion (discovered 2 exits: Dee / [*Pro]) -6/Proximity Caves -6/Factory (discovered 7 exits: *Fac x3 / *Low x2 / *Ext x2) -6/Extension (discovered 3 exits: *Fac x2 / *Cet) -6/Cetus (discovered 2 exits: *Fac / [*Arc]) -6/Archives -6/Hub_04(d) -5/Factory -4/Factory -4/Waste -4/Factory History --------- Turn | Location | Event 11 | -11/Scrapyard | Discovered new exit (range 16) 65 | -11/Scrapyard | Entered Materials 227 | -10/Materials | Discovered new exit (range 7) 234 | -10/Materials | Entered another Materials area 234 | -9/Materials | Evolved 2 slots: Propulsion x1, Utility x1 333 | -9/Materials | Build established: Mutant 648 | -9/Materials | Discovered new exit (range 16) 1188 | -9/Materials | Entered another Materials area 1188 | -8/Materials | Evolved 2 slots: Utility x2 1381 | -8/Materials | Discovered new exit (range 15) 1655 | -8/Materials | Discovered new exit (range 12) 1789 | -8/Materials | Entered Factory 1789 | -7/Factory | Evolved 2 slots: Utility x1, Weapon x1 1888 | -7/Factory | Identified exit to Storage 1888 | -7/Factory | Identified exit to Lower Caves 2010 | -7/Factory | Repaired Hvy. Deuterium Engine 2055 | -7/Factory | Repaired Imp. Medium Armor Plating? 2185 | -7/Factory | Build established: Scavenger-Mutant 2430 | -7/Factory | Discovered new exit (range 4) 2738 | -7/Factory | Lost 3 parts (1p1u1w) 3075 | -7/Factory | Repaired Imp. Medium Armor Plating 3244 | -7/Factory | Entered Lower Caves 3244 | -7/Lower Caves | Accompanied by 1 ally 3288 | -7/Lower Caves | Learned location of 1 exit from Factory 3403 | -7/Lower Caves | Entered a destroyed Warlord outpost 3586 | -7/Lower Caves | A Derelict revealed a hidden shortcut to a safe place 3623 | -7/Lower Caves | Discovered new exit (range 5) 3660 | -7/Lower Caves | Build established: Infiltrator-Mutant 3673 | -7/Lower Caves | Entered another Lower Caves area 3673 | -7/Lower Caves | Accompanied by 1 ally 3770 | -7/Lower Caves | Attracted the attention of an 0b10 checkpoint 3819 | -7/Lower Caves | Discovered new exit (range 15) 3953 | -7/Lower Caves | Encountered a Warlord checkpoint 4033 | -7/Lower Caves | Learned 8 Factory zone layouts 4074 | -7/Lower Caves | Discovered new exit (range 13) 4105 | -7/Lower Caves | Entered Zion 4158 | -7/Zion | Discovered new exit (range 13) 4177 | -7/Zion | Visited the Megawrench Repair Shop 4193 | -7/Zion | Given A8's code to call for help 4221 | -7/Zion | System corruption cleaned by Quarantine Array 4258 | -7/Zion | Identified exit to Deep Caves 4760 | -7/Zion | Found GAL Module 4969 | -7/Zion | Met Imprinter 5020 | -7/Zion | Imprinted 5022 | -7/Zion | Declared Zion's savior 5263 | -7/Zion | Megawrench repaired 9 parts 5321 | -7/Zion | Entered Proximity Caves 5321 | -6/Proximity Caves | Accompanied by 4 allies 5457 | -6/Proximity Caves | Build established: Derelict-Tank 5660 | -6/Proximity Caves | Attracted the attention of an 0b10 outpost 5875 | -6/Proximity Caves | Spotted B-75 Beast 5895 | -6/Proximity Caves | Allies destroyed B-75 Beast 5997 | -6/Proximity Caves | Core integrity fell below 50% 6011 | -6/Proximity Caves | Attracted the attention of an 0b10 checkpoint 6058 | -6/Proximity Caves | Learned location of 1 exit from Factory 6127 | -6/Proximity Caves | Learned 12 Factory zone layouts 6165 | -6/Proximity Caves | Discovered new exit (range 7) 6374 | -6/Proximity Caves | Entered Factory 6374 | -6/Factory | Accompanied by 3 allies 6374 | -6/Factory | Evolved 2 slots: Power x1, Propulsion x1 6375 | -6/Factory | Identified exit to Lower Caves 6375 | -6/Factory | Identified exit to Factory 6376 | -6/Factory | Identified exit to Extension 6437 | -6/Factory | Retrieved Zion intel report: Prototype Schematics 6452 | -6/Factory | Retrieved Zion intel report: Emergency Access 6625 | -6/Factory | Retrieved Zion intel report: Trap Installations 6626 | -6/Factory | Zion Heavy squad teleported in 6832 | -6/Factory | Zion Heavy squad teleported in 6852 | -6/Factory | Build established: Derelict-Mutant 6928 | -6/Factory | Spotted B-75 Beast 6980 | -6/Factory | Lost 4 allies 6983 | -6/Factory | Destroyed B-75 Beast 7038 | -6/Factory | Discovered exit to Lower Caves (range 39) 7039 | -6/Factory | Retrieved Zion intel report: Component Schematics 7084 | -6/Factory | Garrison activated, responded to threat 7219 | -6/Factory | Retrieved Zion intel report: Active Terminals 7252 | -6/Factory | Build established: Messiah-Mutant 7421 | -6/Factory | Repaired Lgt. Armored Exoskeleton 7538 | -6/Factory | Discovered exit to Factory (range 5) 7791 | -6/Factory | Retrieved Zion intel report: Branch Access 7903 | -6/Factory | Retrieved Zion intel report: Prototype Schematics 7936 | -6/Factory | Terminal network hard line cut 8210 | -6/Factory | Entered Extension 8791 | -6/Extension | Rescued a captive Derelict 9005 | -6/Extension | Spotted B-75 Beast 9015 | -6/Extension | Destroyed B-75 Beast 9027 | -6/Extension | Spotted B-75 Beast 9060 | -6/Extension | Destroyed B-75 Beast 9104 | -6/Extension | Lost 6 allies 9273 | -6/Extension | Retrieved Zion intel report: Component Schematics 9279 | -6/Extension | Zion Heavy squad teleported in 9311 | -6/Extension | Retrieved Zion intel report: Unaware Schematics 9312 | -6/Extension | Zion Light squad teleported in 9475 | -6/Extension | Rescued a captive Derelict 9567 | -6/Extension | Energy Cycler disabled 9567 | -6/Extension | Rescued a captive Derelict 9567 | -6/Extension | Rescued a captive Derelict 9568 | -6/Extension | Rescued a captive Derelict 9568 | -6/Extension | Rescued a captive Derelict 9568 | -6/Extension | Rescued a captive Derelict 9568 | -6/Extension | Rescued a captive Derelict 9569 | -6/Extension | Rescued a captive Derelict 9570 | -6/Extension | Rescued a captive Derelict 9571 | -6/Extension | Rescued a captive Derelict 9635 | -6/Extension | Terminal network hard line cut 9639 | -6/Extension | Lost 4 allies 9769 | -6/Extension | Discovered exit to Factory (range 15) 9811 | -6/Extension | Build established: Scavenger-Tank 9841 | -6/Extension | Rescued A7 9925 | -6/Extension | Discovered exit to Factory (range 16) 9925 | -6/Extension | Discovered new exit (range 16) 10132 | -6/Extension | Entered Cetus 10132 | -6/Cetus | Accompanied by 16 allies (A7) 10137 | -6/Cetus | Acquired a Cetus Manufacturing Module code from A7 10163 | -6/Cetus | Spotted Cetus Guard 10163 | -6/Cetus | Spotted Cetus Guard 10168 | -6/Cetus | Destroyed Cetus Guard 10175 | -6/Cetus | Spotted Cetus Guard 10175 | -6/Cetus | Spotted Cetus Guard 10188 | -6/Cetus | Allies destroyed Cetus Guard 10190 | -6/Cetus | Allies destroyed Cetus Guard 10193 | -6/Cetus | Allies destroyed Cetus Guard 10219 | -6/Cetus | Lost 4 allies 10261 | -6/Cetus | Started Cetus Manufacturing Module 10286 | -6/Cetus | Manufactured an Enhanced Grunt 10311 | -6/Cetus | Manufactured an Enhanced Grunt 10336 | -6/Cetus | Manufactured an Enhanced Grunt 10361 | -6/Cetus | Manufactured an Enhanced Grunt 10386 | -6/Cetus | Manufactured an Enhanced Grunt 10418 | -6/Cetus | Found a strange terminal 10435 | -6/Cetus | Escorted A7 to Cetus Mainframe 10488 | -6/Cetus | Discovered new exit (range 15) 10529 | -6/Cetus | Spotted Cetus Guard 10529 | -6/Cetus | Spotted Cetus Guard 10532 | -6/Cetus | Spotted Cetus Guard 10533 | -6/Cetus | Spotted Cetus Guard 10534 | -6/Cetus | Allies destroyed Cetus Guard 10536 | -6/Cetus | Allies destroyed Cetus Guard 10543 | -6/Cetus | Allies destroyed Cetus Guard 10544 | -6/Cetus | Destroyed Cetus Guard 10554 | -6/Cetus | Discovered exit to Factory (range 16) 10560 | -6/Cetus | Scared off Revision 17 10684 | -6/Cetus | Entered Archives 10684 | -6/Archives | Accompanied by 15 allies (A7) 10689 | -6/Archives | Received a hacking code to weaken MAIN.C 10740 | -6/Archives | Discovered new exit (range 15) 10785 | -6/Archives | Entered Hub_04(d) 10785 | -6/Hub_04(d) | Accompanied by 13 allies 10871 | -6/Hub_04(d) | Retrieved Zion intel report: Active Terminals 10872 | -6/Hub_04(d) | Zion Recon squad teleported in 10946 | -6/Hub_04(d) | Retrieved Zion intel report: Prototype Schematics 10974 | -6/Hub_04(d) | Discovered exit to Factory (range 7) 10981 | -6/Hub_04(d) | Network Hub disabled 11013 | -6/Hub_04(d) | Lost 4 allies 11035 | -6/Hub_04(d) | Spotted Lightning 11054 | -6/Hub_04(d) | Network Hub disabled 11054 | -6/Hub_04(d) | Spotted Lightning 11054 | -6/Hub_04(d) | Spotted Lightning 11079 | -6/Hub_04(d) | Entered Factory 11079 | -5/Factory | Evolved 2 slots: Propulsion x1, Utility x1 11085 | -5/Factory | Lost 6 allies 12027 | -5/Factory | Cargo convoy interrupted 12047 | -5/Factory | Garrison activated, responded to threat 12053 | -5/Factory | System corruption reached 10% 12120 | -5/Factory | Lost 8 parts (1p2n3u2w) 12178 | -5/Factory | Assembled infested ambush trap array 12182 | -5/Factory | System corruption reached 30% 12252 | -5/Factory | Build established: Scavenger-Mutant 12302 | -5/Factory | Terminal network hard line cut 12396 | -5/Factory | Lost 3 parts (1p2w) 12425 | -5/Factory | Released all parts (5) 12430 | -5/Factory | Core integrity fell below 50% 12437 | -5/Factory | Discovered new exit (range 14) 12444 | -5/Factory | Entered another Factory area 12444 | -4/Factory | Evolved 2 slots: Propulsion x1, Utility x1 12455 | -4/Factory | Lost 5 parts (1n3u1w) 12498 | -4/Factory | Zion Fire squad teleported in 12544 | -4/Factory | Lost 3 allies 12568 | -4/Factory | Manually triggered Chute Trap 12568 | -4/Factory | Sucked down chute 12568 | -4/Factory | Entered Waste 12580 | -4/Waste | Spotted C-40 Crusher 12583 | -4/Waste | EMP discharged 12596 | -4/Waste | Lost 4 parts (2p1n1w) 12598 | -4/Waste | Spotted C-40 Crusher 12621 | -4/Waste | Spotted C-40 Crusher 12625 | -4/Waste | Spotted C-40 Crusher 12627 | -4/Waste | Build established: Mutant 12631 | -4/Waste | Crushed by Compactor (1 part destroyed, 2 dropped) 12635 | -4/Waste | Crushed by Compactor (1 part destroyed, 2 dropped) 12636 | -4/Waste | Crushed by Compactor (1 part destroyed) 12637 | -4/Waste | Core integrity fell below 50% 12637 | -4/Waste | Spotted C-40 Crusher 12647 | -4/Waste | Discovered new exit (range 16) 12648 | -4/Waste | Spotted C-40 Crusher 12656 | -4/Waste | Entered Factory 12667 | -4/Factory | Lost 3 parts (1n1u1w) 12883 | -4/Factory | Zion Demo squad teleported in 12954 | -4/Factory | P-70 Sage assimilated allied HG-13L(d) 12982 | -4/Factory | Garrison activated, responded to threat 12992 | -4/Factory | System corruption reached 10% 13031 | -4/Factory | Lost 4 parts (2p1n1w) 13054 | -4/Factory | Core integrity fell below 20% 13084 | -4/Factory | Lost 5 parts (1p1n1u2w) 13163 | -4/Factory | Self-destructed Last Messages --------------- 13124_ System corrupted: Heat flow error (+132). 13132_ Acquired 3 matter. 13133_ Slug penetrates Wall. 13133_ Acquired 1 matter. 13134_ Acquired 3 matter. 13141_ Acquired Adv. Shield Generator. 13144_ Penetrated by Slug. 13146_ Slug penetrates Wall. 13149_ Penetrated by Slug. 13152_ System corrupted: Component data lost. 13152_ Penetrated by Slug. 13153_ Critical hit (Burn: +26). 13153_ Penetrated by Slug. 13154_ Dropped Adv. Shield Generator. 13155_ Penetrated by Slug. 13158_ Backup Laser I destroyed. 13159_ Antigrav System destroyed. 13160_ Penetrated by Slug. 13161_ Disruptor Cannon destroyed. 13161_ Penetrated by Slug. Map ----- +----------------------------------------------------+ | ??????????????????????????? | | ??????????????????????????? | | ??????????????????????????? | | ??????????????????????????? | | ??????????????????????????? | | ??????????????????????????? | | ??????###########?????????? | | ??????# ########### | | ??????# # | | ??????# # | | ??????# " | | ??????# [ | | ??????# " ] ! | | ??????# ##### | | ??????# [ #???? | | ####### = #???? | | # % #???? | | # ""G" ^ ^ #???? | | # " " %" =! #???? | | # " " " ^!! #???? | | ; %"" #???? | | # # ^ #???? | | # """ # %% #???? | | # """ # % #???? | | # """ /Y %%" #???? | | # @ # % #???? | | # # #???? | | #/// ##### ########???? | | #/// #?# #??????????? | | #/ # #?# #??????????? | | # #?#? #????????? | | # Y ### #????????? | | # +????????? | | # ## #????????? | | ## ## #?? #????????? | | ?# ? #?######?????????? | | ?# # ?##????????????????? | | ??#?####??????????????????? | | ??????????????????????????? | | ??????????????????????????? | | ??????????????????????????? | | ??????????????????????????? | | ??????????????????????????? | | ??????????????????????????? | | ??????????????????????????? | | ??????????????????????????? | | ??????????????????????????? | | ??????????????????????????? | | ??????????????????????????? | | ??????????????????????????? | +----------------------------------------------------+ Best States ------------- Heat Dissipation 92 Coolant Potential 65 Energy Generation 51 Energy Capacity 770 Matter Stores 300 Matter Capacity 300 Sight Range 22 Terrain Scan Density 10 Jamming Range 12 EM Shielding 3 Corruption Block 8 Armor Coverage 675 Utility Shielding 66 Evasion (%) 55 Target Analysis 6 Recoil Reduction 4 Energy Filtering 30 Particle Charging 15 Offensive Hacking 12 Defensive Hacking 11 Item Schematics ----------------- Imp. EM Shotgun | -9/Materials | Scanalyzed Particle Charger | -9/Materials | Scanalyzed Imp. Medium Laser | -9/Materials | Scanalyzed Lgt. Armored Exoskeleton | -8/Materials | Scanalyzed Hvy. Deuterium Engine | -8/Materials | Scanalyzed Hacking Suite | -8/Materials | Scanalyzed System Shield | -8/Materials | Scanalyzed System Restoration Module | -8/Materials | Scanalyzed Enh. Nuclear Core | -6/Factory | Z-intel Force Rifle | -6/Factory | Z-intel Com. Ion Cannon | -6/Factory | Z-intel Exp. Weapon Shielding | -6/Factory | Z-intel Cld. Plasma Cannon | -6/Factory | Z-intel Mni. Assault Cannon | -6/Factory | Z-intel Rocket Array | -6/Factory | Z-intel Thermal Defense Suite | -6/Factory | Z-intel Hpw. Shock Rifle | -6/Factory | Z-intel Shock Rifle | -6/Factory | Z-intel Imp. Propulsion Shielding | -6/Factory | Z-intel Hrd. Light Armor Plating | -6/Factory | Z-intel Lgt. Nuclear Core | -6/Factory | Z-intel Power Amplifier | -6/Factory | Z-intel Hvy. Laser | -6/Factory | Z-intel Fission Core | -6/Factory | Z-intel Imp. Sensor Array | -6/Factory | Z-intel Imp. Targeting Computer | -6/Factory | Z-intel Fusion Compressor | -6/Factory | Z-intel Imp. Reaction Control System | -6/Factory | Z-intel Imp. Cooling System | -6/Factory | Z-intel Imp. Heavy Machine Gun | -6/Factory | Z-intel Imp. Cesium-ion Thruster | -6/Factory | Z-intel F-cell Engine | -6/Factory | Z-intel Imp. Lightning Gun | -6/Factory | Z-intel Prc. Assault Rifle | -6/Factory | Z-intel Adv. Beam Rifle | -6/Factory | Z-intel Antimatter Cannon | -6/Factory | Z-intel Imp. Heavy Laser | -6/Factory | Z-intel Multireflex Exoskeleton | -6/Factory | Scanalyzed Imp. Weapon Shielding | -6/Extension | Z-intel Great Maul | -6/Extension | Z-intel Imp. Melee Analysis Suite | -6/Extension | Z-intel Weight Redist. System | -6/Extension | Z-intel Imp. Terrain Scanner | -6/Extension | Z-intel Remote Datajack | -6/Extension | Z-intel Lgt. Angular Momentum Engine | -6/Extension | Z-intel Transmission Jammer | -6/Extension | Z-intel Force Field | -6/Extension | Z-intel Imp. EM Pulse Cannon | -6/Extension | Z-intel Hvy. Particle Cannon | -6/Extension | Z-intel Gauss Cannon | -6/Extension | Z-intel Phase Cannon | -6/Extension | Z-intel Hcp. Matter Pod | -6/Extension | Z-intel Hpw. Tractor Beam | -6/Extension | Z-intel Plasma Rifle | -6/Extension | Z-intel Cld. Pulse Rifle | -6/Hub_04(d) | Z-intel Imp. Airjet | -6/Hub_04(d) | Z-intel Cld. Aerolev Unit | -6/Hub_04(d) | Z-intel Gravity Neutralizer | -6/Hub_04(d) | Z-intel Hpw. Field Laser | -6/Hub_04(d) | Z-intel Exp. Utility Shielding | -6/Hub_04(d) | Z-intel Biomechanical Wings | -6/Hub_04(d) | Z-intel Gui. EMP Blaster | -6/Hub_04(d) | Z-intel Prc. Rocket Launcher | -6/Hub_04(d) | Z-intel Phase Gun | -4/Factory | Scanalyzed Hvy. Shock Bomb Launcher | -4/Factory | Scanalyzed Enh. Gauss Cannon | -4/Factory | Scanalyzed Robot Schematics ------------------ S-27 Virus | -6/Extension | Z-intel A-15 Conveyor | -6/Extension | Z-intel T-07 Excavator | -6/Extension | Z-intel G-47 Trooper | -6/Extension | Z-intel Fabricated ------------ Nothing Repaired ---------- Hvy. Deuterium Engine | 39% | -7/Factory Imp. Medium Armor Plating | 9% | -7/Factory Imp. Medium Armor Plating | 39% | -7/Factory Lgt. Armored Exoskeleton | 22% | -6/Factory Alien Tech Used ----------------- None Achievements -------------- Decoder Ring Z1$+NX3F=JRE3_ZNQR Challenges ------------ None Game ------ Seed AntigravVisualThruster Manual? 0 Play Time 05:45:53 Cumulative 217.0 hours Start 2025.05.10 @ 23:08:53 End 2025.05.11 @ 12:07:06 Sessions 3 Manual Loads 0 Difficulty Rogue Special Mode None Game No. 95 Rogue 52 Adventurer 43 Explorer 0 Win Type - Total 6 Types 4/0/1/0/0/0/0/1/0/0 Lore% 67 Gallery% 65 Achievement% 61 Wizard Run 0 Options --------- Layout 0 ASCII 0 Keyboard 0 Movement Mouse Keybinds 0 Fullscreen 1 Font 24/Smallcaps Map View 76x50 Zoom Use 0% Tactical HUD 1 Map Filters NONE Filters NONE Steam 1 RUN: e04b98ad-ac7a-44d9-aff8-47e2b399883e